Cogmind - Beta 9.1 @@@ ROGUE MODE // 2019.11.01 @ 09:27:43 Player: MrPainting Result: Self-destructed Performance ------------- Evolutions (1) 500 Regions Visited (3) 600 Robots Destroyed (43) 215 Value Destroyed (940) 940 Prototype IDs (1) 20 Alien Tech Used (0) 0 Bonus (0) 0 TOTAL SCORE: 2275 Bonus ------- None Cogmind --------- Core Integrity 45/400 Matter 127/300 Energy 100/100 System Corruption 0% Temperature Cool (232) Location -9/Storage Parts ------- Power (1) Propulsion (4) Light Treads Light Treads Improved Treads Improved Treads Utility (2) Large Storage Unit Hardened Light Armor Plating Weapon (2) Improved Medium Laser Improved Medium Laser Inventory (10) Ion Engine Improved Treads Improved Treads Heat Sink Cooling System Heavy EM Pulse Gun Heavy EM Pulse Gun Heavy EM Pulse Gun Grenade Launcher Peak State ------------ Power Improved Ion Engine Propulsion Light Treads Light Treads Improved Treads Improved Treads Utility Large Storage Unit Hardened Light Armor Plating Weapon Improved Medium Laser Improved Medium Laser Inventory Ion Engine Improved Treads Improved Treads Heat Sink Cooling System Heavy EM Pulse Gun Heavy EM Pulse Gun Heavy EM Pulse Gun Improved Medium Laser Grenade Launcher [Rating: 18] Favorites ----------- Power Improved Ion Engine Engine Improved Ion Engine Propulsion Light Treads Treads Light Treads Utility Large Storage Unit Device Structural Scanner Storage Large Storage Unit Protection Hardened Light Armor Plating Weapon Assault Rifle Energy Gun Heavy EM Pulse Gun Ballistic Gun Assault Rifle Launcher Grenade Launcher Build | -11 -10 -9 -9 ------- Run | Scr Mat Mat Sto Slots Evolved 2 | . . 2 . Power . | . . . . Propulsion 2 | . . 2 . Utility . | . . . . Weapon . | . . . . Parts Attached 32 | 6 7 10 9 Power 2 | 1 . 1 . Engine 2 | 1 . 1 . Core . | . . . . Reactor . | . . . . Propulsion 8 | 2 . 4 2 Treads 8 | 2 . 4 2 Leg . | . . . . Wheel . | . . . . Hover . | . . . . Flight . | . . . . Utility 5 | 1 2 1 1 Device 1 | . 1 . . Storage 2 | 1 1 . . Processor . | . . . . Hackware . | . . . . Protection 2 | . . 1 1 Artifact . | . . . . Weapon 17 | 2 5 4 6 Energy Gun 8 | . . 3 5 Energy Cannon . | . . . . Ballistic Gun 5 | 2 3 . . Ballistic Cannon . | . . . . Launcher 4 | . 2 1 1 Special Weapon . | . . . . Impact Weapon . | . . . . Slashing Weapon . | . . . . Piercing Weapon . | . . . . Special Melee Weapon . | . . . . Unidentified Prototypes 1 | . . . 1 Parts Lost 10 | . 1 6 3 Power 2 | . 1 . 1 Propulsion 2 | . . 2 . Utility 2 | . . 1 1 Weapon 4 | . . 3 1 Highest Loss Streak 6 | . 1 6 2 Average Slot Usage (%) 86 | . 86 53 98 Engine 6 | . 4 1 10 Treads 31 | . 28 14 44 Device 6 | . 10 5 . Storage 12 | . 14 11 11 Protection 3 | . . 2 10 Energy Gun 8 | . . 6 21 Ballistic Gun 8 | . 13 11 . Launcher 7 | . 14 . . Naked Turns . | . . . . Heaviest Build 34 | 11 24 32 34 Greatest Support 92 | 40 40 92 92 Greatest Overweight (x) 6 | 1 . 6 . Average Overweight (x) . | . . . . Largest Inventory Capacity 10 | 6 10 10 10 Average Capacity 9 | 5 8 10 10 Most Carried 10 | 5 10 10 10 Average Carried 5 | 1 4 8 5 Final Capacity 10 | 6 10 10 10 Final Carried 10 | . 10 2 9 Class Distribution -------------------- 100% | Mutant Dominant Class ---------------- Mutant | -10/Materials Mutant | -9/Materials Mutant | -9/Storage Resources | -11 -10 -9 -9 ----------- Run | Scr Mat Mat Sto Matter Collected 782 | 244 194 118 226 Remotely . | . . . . Salvage Created 950 | . 448 85 417 Parts 67 | . 34 5 28 Haulers Intercepted 1 | . . . 1 Recyclers Shooed 2 | . 1 1 . Parts Field Recycled . | . . . . Retrieved Matter . | . . . . Parts Self-Destructed . | . . . . Prevented . | . . . . Kills | -11 -10 -9 -9 ------- Run | Scr Mat Mat Sto Combat Hostiles Destroyed 26 | . 14 3 9 Guns 13 | . 7 1 5 AOE 13 | . 7 2 4 Classes Destroyed 9 | . 6 1 2 Worker 6 | . 4 1 1 Builder 2 | . 1 . 1 Hauler 1 | . . . 1 Recycler 1 | . . . 1 Operator 2 | . 2 . . Watcher 5 | . 3 1 1 Swarmer 10 | . 6 . 4 Grunt 12 | . 8 2 2 Sentry 4 | . . 1 3 Best Kill Streak 10 | . 10 5 9 Combat Bots Only 6 | . 5 3 6 Max Kills in Single Turn 2 | . 2 1 2 Gunslinging . | . . . . Exploded 2 | . 2 1 2 Melee . | . . . . Uniques/NPCs Destroyed . | . . . . Combat | -11 -10 -9 -9 -------- Run | Scr Mat Mat Sto Damage Taken 2229 | . 598 591 1040 Core 442 | . 87 201 154 Absorbed by Shields . | . . . . Core Remaining (%) 82 | 100 65 . . Volleys Fired 80 | . 41 12 27 Largest 2 | . 2 2 2 Hottest 112 | . 60 65 112 Shots Fired 140 | . 79 13 48 Gun 108 | . 55 8 45 Cannon . | . . . . Launcher 32 | . 24 5 3 Special . | . . . . Kinetic 56 | . 55 1 . Thermal 5 | . . . 5 Explosive 32 | . 24 5 3 Electromagnetic 47 | . . 7 40 Robot Hit Streak 23 | . 7 9 23 Robot Miss Streak 4 | . 4 1 1 Penetration Max . | . . . . Secondary Targets 2 | . 2 . . Max Gunslinging Chain 1 | . 1 . . Shots Hit Robots 86 | . 37 11 38 Core Hits 70 | . 35 14 21 Critical Hits . | . . . . Critical Kills . | . . . . Critical Parts Destroyed . | . . . . Melee Attacks . | . . . . Impact . | . . . . Slashing . | . . . . Piercing . | . . . . Sneak Attacks . | . . . . Combat Hostiles . | . . . . Follow-up Attacks . | . . . . Damage Inflicted 2492 | . 1229 384 879 Guns 1150 | . 484 96 570 Cannons . | . . . . Explosions 1340 | . 745 288 307 Melee . | . . . . Ramming 2 | . . . 2 Kinetic 484 | . 484 . . Thermal 115 | . . . 115 Explosive 1151 | . 688 203 260 Electromagnetic 740 | . 57 181 502 Impact . | . . . . Slashing . | . . . . Piercing . | . . . . Highest Corruption . | . . . . Average Corruption . | . . . . Corruption Purged . | . . . . Overload Shots . | . . . . Overflow Damage 40 | . 18 3 19 Projectiles . | . . . . Explosions 40 | . 18 3 19 Melee . | . . . . Knockbacks . | . . . . Impact . | . . . . Kinetic . | . . . . Secondary . | . . . . Self-Inflicted Damage 358 | . 136 112 110 Shots 13 | . 6 4 3 Rammed 1 | . . . 1 Targets Rammed 1 | . . . 1 Kicked . | . . . . Crushed . | . . . . Highest Temperature 309 | . 8 5 309 Average Temperature 95 | . 3 2 104 Received Heat Transfer 621 | . 132 210 279 Siege Activations . | . . . . Robots Corrupted . | . . . . Combat Hostiles . | . . . . Parts Fried 6 | . . 2 4 Impact Corruptions . | . . . . Robots Melted . | . . . . Combat Hostiles . | . . . . Parts Melted . | . . . . Heat Transferred 198 | . . . 198 Parts Sabotaged . | . . . . Parts Stolen . | . . . . Parts Stripped . | . . . . Power Chain Reactions 1 | . . . 1 Missiles Intercepted . | . . . . Alert | -11 -10 -9 -9 ------- Run | Scr Mat Mat Sto Peak Influence 363 | . 353 210 363 Average Influence 156 | . 168 170 159 Maximum Alert Level 1 | . 1 1 1 Low Security (%) 69 | . . . . Level 1 30 | . . . . Level 2 . | . . . . Level 3 . | . . . . Level 4 . | . . . . Level 5 . | . . . . High Security . | . . . . Max Security . | . . . . Squads Dispatched 4 | . 4 . . Investigation 1 | . 1 . . Extermination . | . . . . Reinforcement 3 | . 3 . . Assault . | . . . . Garrison . | . . . . Intercept . | . . . . Construction Impeded . | . . . . Haulers Reinforced . | . . . . Stealth | -11 -10 -9 -9 --------- Run | Scr Mat Mat Sto Distress Signals 2 | . 2 . . Communications Jammed . | . . . . Distress Signals . | . . . . Times Spotted 42 | . 23 5 14 Peak Tracking Total 7 | . 7 4 6 Tactical Retreats 2 | . 1 . 1 Traps | -11 -10 -9 -9 ------- Run | Scr Mat Mat Sto Traps Triggered 1 | . 1 . . Indirectly 1 | . 1 . . Trap Hack Attempts . | . . . . Triggered . | . . . . Disarmed . | . . . . Reprogrammed . | . . . . Reused . | . . . . Traps Extracted . | . . . . Installed . | . . . . Triggered . | . . . . Machines | -11 -10 -9 -9 ---------- Run | Scr Mat Mat Sto Machines Disabled 11 | . 10 1 . Max in Single Turn 2 | . 2 1 . Machines Sabotaged . | . . . . Garrisons Compromised . | . . . . Overloaded Fab Kills . | . . . . Fab Network Shutdowns . | . . . . Hacking | -11 -10 -9 -9 --------- Run | Scr Mat Mat Sto Machines Accessed 6 | . 3 . 3 Terminals 5 | . 3 . 2 Fabricators . | . . . . Repair Stations . | . . . . Recycling Units 1 | . . . 1 Scanalyzers . | . . . . Garrison Access . | . . . . Total Hacks 15 | . 7 . 8 Successful 7 | . 4 . 3 Failed 8 | . 3 . 5 Catastrophic 1 | . 1 . . Database Lockouts . | . . . . Manual 9 | . 5 . 4 Terminals 14 | . 7 . 7 Fabricators . | . . . . Repair Stations . | . . . . Recycling Units 1 | . . . 1 Scanalyzers . | . . . . Garrison Access . | . . . . Terminal Hacks 2 | . 1 . 1 Terminal Index 1 | . . . 1 Locate Traps 1 | . 1 . . Fabricator Hacks . | . . . . Repair Station Hacks . | . . . . Recycling Unit Hacks 1 | . . . 1 Report Inventory 1 | . . . 1 Scanalyzer . | . . . . Garrison Access Hacks . | . . . . Unauthorized Hacks 10 | . 8 . 2 Terminals 4 | . 3 . 1 Botnet 4 | . 3 . 1 Fabricators . | . . . . Repair Stations . | . . . . Recycling Units . | . . . . Scanalyzers . | . . . . Garrison Access . | . . . . Data Cores Recovered . | . . . . Used . | . . . . Hacking Detections 5 | . 3 . 2 Full Trace Events 1 | . . . 1 Feedback Events . | . . . . Feedback Blocked . | . . . . Robot Schematics Acquired . | . . . . Robots Built . | . . . . Matter . | . . . . Time . | . . . . Total Robot Build Rating . | . . . . Part Schematics Acquired . | . . . . Parts Built . | . . . . Matter . | . . . . Time . | . . . . Total Part Build Rating . | . . . . Parts Repaired . | . . . . Time . | . . . . Parts Recycled . | . . . . Recycled Matter . | . . . . Retrieved Matter . | . . . . Retrieved Components . | . . . . Parts Scanalyzed . | . . . . Part Schematics Acquired . | . . . . Parts Damaged . | . . . . Bothacking | -11 -10 -9 -9 ------------ Run | Scr Mat Mat Sto Used RIF Installer . | . . . . Robots Hacked . | . . . . Non-combat . | . . . . Combat . | . . . . Robot Hacks Applied . | . . . . Relay Couplers Released . | . . . . Robots Rewired . | . . . . Allies Hacked . | . . . . Hacks Repelled . | . . . . Allies | -11 -10 -9 -9 -------- Run | Scr Mat Mat Sto Total Allies . | . . . . Largest Group . | . . . . Highest-Rated Group . | . . . . Highest-Rated Ally . | . . . . Total Orders . | . . . . Ally Attacks . | . . . . Total Damage . | . . . . Kills . | . . . . Allies Corrupted . | . . . . Allies Melted . | . . . . Intel | -11 -10 -9 -9 ------- Run | Scr Mat Mat Sto Robot Analysis Total . | . . . . Derelict Logs Recovered . | . . . . Drone Launches . | . . . . Drone Recoveries . | . . . . Exploration | -11 -10 -9 -9 ------------- Run | Scr Mat Mat Sto Turns Passed 1389 | 77 690 173 449 Spaces Moved 624 | 58 309 75 182 Core 38 | 30 . 8 . Treads 586 | 28 309 67 182 Legs . | . . . . Wheels . | . . . . Hover . | . . . . Flight . | . . . . Fastest Speed 50 | 50 160 160 160 Average Speed 158 | 111 160 181 160 Slowest Speed 350 | 160 160 350 160 Overloaded Moves . | . . . . Propulsion Burnouts . | . . . . Robots Hopped . | . . . . Cave-ins Triggered . | . . . . Exploration Rate (%) 28 | 3 66 9 35 Regions Visited 3 Branch Regions 1 Pre-discovered Areas . | . . . . Known Exits Taken . | . . . . Unknown Exits Taken 3 | 1 1 1 . Scrap Searched . | . . . . Spaces Dug . | . . . . Terrain Destroyed 144 | . 99 25 20 Melee . | . . . . Projectile . | . . . . AOE 144 | . 99 25 20 Actions | -11 -10 -9 -9 --------- Run | Scr Mat Mat Sto Total 883 | 70 426 99 288 Wait 104 | . 45 . 59 Move 621 | 57 308 74 182 Hop . | . . . . Pick Up 35 | 6 18 2 9 Fast Attach 1 | 1 . . . Attach 18 | 5 1 9 3 Detach 1 | . . . 1 Swap 13 | . 6 1 6 Drop 9 | 1 7 1 . Fire 80 | . 41 12 27 Melee . | . . . . Ram . | . . . . Kick . | . . . . Crush 1 | . . . 1 Escape Stasis . | . . . . Rewire . | . . . . Trap . | . . . . Miscellaneous . | . . . . Route ------- -11/Scrapyard -10/Materials (discovered 3 exits: [*Mat x2] / [*Min]) -9/Materials -9/Storage History --------- Turn | Location | Event 6 | -11/Scrapyard | Discovered new exit (range 15) 78 | -11/Scrapyard | Entered Materials 281 | -10/Materials | Discovered new exit (range 6) 300 | -10/Materials | Build established: Mutant 463 | -10/Materials | Discovered new exit (range 7) 761 | -10/Materials | Discovered new exit (range 4) 768 | -10/Materials | Entered another Materials area 768 | -9/Materials | Evolved 2 slots: Propulsion x2 844 | -9/Materials | Discovered new exit (range 13) 879 | -9/Materials | Core integrity fell below 50% 900 | -9/Materials | Lost 6 parts (2n1u3w) 941 | -9/Materials | Entered Storage 1311 | -9/Storage | Core integrity fell below 20% 1390 | -9/Storage | Self-destructed Last Messages --------------- 01328_ The unstable cave ceiling collapses. 01328_ U-05 Engineer lays Concrete. 01328_ R-06 Scavenger collects Heat Sink. 01328_ U-05 Engineer lays Concrete. 01329_ Acquired 65 matter. 01329_ U-05 Engineer lays Concrete. 01330_ U-05 Engineer builds a Door. 01333_ Acquired Prototype Energy Gun. 01334_ Identified Imp. Medium Laser. 01337_ Acquired Imp. Medium Laser. 01339_ U-05 Engineer lays Concrete. 01340_ U-05 Engineer builds a Wall. 01340_ Acquired Imp. Medium Laser. 01344_ U-05 Engineer lays Concrete. 01351_ U-05 Engineer builds a Door. 01358_ U-05 Engineer builds a Wall. 01379_ Transfer Shaft disabled. 01384_ Imp. Medium Laser destroyed. 01387_ G-47 Trooper IFF system glitched. 01389_ Imp. Ion Engine destroyed. Map ----- +----------------------------------------------------+ | | | | | | | | | | | | | | | | | | | ?????????######??????????????????????????????????? | | ????????? ?????????????????????????????????? | | ????????# #????????????????????????????????? | | ????????#"" #????????????????????????????????? | | ????????#"Y """ #????????????????????????????????? | | ????????#"" """ #??????####??????????????????????? | | ??????### [ """ ?#######!!#??????????????????????? | | ?????"####/####### ##!!#??????????????????????? | | ?????" = =!%* ! ##!!#??????????????????????? | | ?????" = ! [% ## "##?????????????????????? | | ?????"# ##/####### + T#?????????????????????? | | ??###?## ### ## ##?????????????????????? | | ?##T##### #?# ######??????????????????????? | | ?# # ## #???????????????????????????? | | ?# # |% ### ###########?????????????????? | | ?# """# * #?# + """ ""?????????????????? | | ?# """# #?# ####@""" ""?????????????????? | | ?# """# *% #?# #??# "" ""?????????????????? | | ?# # "### #??# ???????????????? | | #####+### "%+ #??#ggY ???????????????? | | + + "### + ^ ???????????????? | | ####%### #?###+### #??????????????? | | #### ###########???????# #??????????????? | | # #????????????????###"T"# ###??????????????? | | # #???????????????????"""###????????????????? | | !+ #???????????????????####??????????????????? | | #= #?????????????????????????????????????????? | | # #?????????????????????????????????????????? | | ?## ##?????????????????????????????????????????? | | ??# #??????????????????????????????????????????? | | ??# #??????????????????????????????????????????? | | ??# #??????????????????????????????????????????? | | ??# #??????????????????????????????????????????? | | ### #??????????????????????????????????????????? | | " + #??????????????????????????????????????????? | | #T# #??????????????????????????????????????????? | | ### #########+##???????????????????????????????? | | ??# ??????????????????????????????? | | ??# ??????????????????????????????? | | ??# ??????????????????????????????? | | ??# #########+##???????????????????????????????? | +----------------------------------------------------+ Best States ------------- Heat Dissipation 28 Energy Generation 12 Energy Capacity 265 Matter Stores 291 Matter Capacity 300 Sight Range 16 Terrain Scan Density 10 Armor Coverage 150 Evasion (%) 50 Recoil Reduction 4 Item Schematics ----------------- None Robot Schematics ------------------ None Fabricated ------------ Nothing Alien Tech Used ----------------- None Achievements -------------- None Challenges ------------ None Game ------ Seed OverloadDeliveryPit Manual? 0 Play Time 00:16:20 Cumulative 79.3 hours Start 2019.11.01 @ 09:12:56 End 2019.11.01 @ 09:27:43 Sessions 1 Manual Loads 0 Difficulty Rogue Special Mode None Game No. 125 Rogue 125 Adventurer 0 Explorer 0 Win Type - Total 0 Types 0/0/0/0/0/0/0 Lore% 30 Gallery% 42 Achievement% 30 Wizard Run 0 Options --------- ASCII 0 Keyboard 0 Movement Mouse Keybinds 0 Fullscreen 1 Font 18/SmallcapsGlow Map View 76x50 Tactical HUD 1 Map Filters NONE Filters NONE Steam 1 RUN: d1093893-516d-419f-bc23-43f9918ec649